bitfinex-derivatives/quotes_SOLF0:USTF0_20250808
["timestamp","ask_amount","ask_price","bid_price","bid_amount"]
[1754655433238,3.28,177.0,176.99,0.34109865]
[1754655438542,3.28,177.0,176.98,0.03874743]
[1754655438733,3.28,177.0,176.94,107.22872705]
[1754655438932,3.28,176.95,176.94,104.06]
[1754655439144,3.28,176.95,176.94,107.71872705]
[1754655439336,3.28,176.95,176.94,107.22872705]
[1754655440339,3.28,176.95,176.94,112.87792705]
[1754655442143,3.28,176.95,176.94,104.06]
[1754655442343,3.28,176.95,176.94,107.22872705]
[1754655442740,3.28,176.95,176.94,107.71872705]
[1754655443340,0.03857953,176.96,176.95,0.49]
[1754655443538,15.94392529,176.98,176.94,110.3974541]
[1754655443737,3.28,176.98,176.97,3.16872705]
[1754655443939,3.28,176.98,176.97,107.22872705]
[1754655444434,3.28,176.98,176.97,112.87692705]
[1754655446441,15.94392529,177.0,176.98,0.04]
[1754655446744,3.28,177.0,176.99,107.26872705]
[1754655447137,3.28,177.0,176.99,107.22872705]
[1754655448244,3.28,177.0,176.99,112.87632705]
[1754655449251,3.28,177.0,176.99,125.90632705]
[1754655449442,3.28,177.0,176.99,125.94632705]
[1754655449642,15.80884337,177.06,177.01,0.04]
[1754655449643,12.65868184,177.02,177.01,0.04]
[1754655449840,12.65868184,177.02,177.01,107.20872705]
[1754655450045,3.28,177.02,177.01,107.24872705]
[1754655450548,3.28,177.02,176.99,248.03]
[1754655450851,3.28,177.02,177.01,104.04]
[1754655451049,3.28,177.02,177.0,0.03887591]
[1754655451241,3.28,177.02,177.0,104.04372724]
[1754655451642,5.6468,177.02,177.0,104.04372724]
[1754655451844,3.28,177.01,177.0,104.04372724]
[1754655453543,3.28,177.01,177.0,80.19054864]
[1754655453941,3.28,177.01,177.0,76.85088531]
[1754655453942,8.927,177.01,177.0,76.85088531]
[1754655454145,3.28,177.01,176.98,104.04]
[1754655454651,5.6473,177.0,176.98,104.04]
[1754655454948,3.28,176.99,176.98,104.04]
[1754655456045,15.80884337,177.02,176.97,3.21]
[1754655456244,3.23,177.01,176.97,3.21]
[1754655456954,8.8771,177.01,176.97,3.21]
[1754655457148,5.6471,177.01,176.97,3.21]
[1754655457348,3.23,177.0,176.97,3.21]
[1754655458457,3.23,177.0,176.96,104.02]
[1754655458650,3.23,177.0,176.97,3.27]
[1754655459756,3.23,177.0,176.98,3.27]
[1754655459956,3.23,177.01,176.96,109.6684]
[1754655460152,15.80884337,177.01,176.97,3.27]
[1754655460357,3.23,176.99,176.98,3.27]
[1754655461263,3.23,176.99,176.96,112.20790559]
[1754655461460,12.67428035,176.97,176.96,112.20790559]
[1754655462065,3.26689072,176.98,176.96,112.20790559]
[1754655462362,3.26689072,176.98,176.96,106.55940559]
[1754655462563,0.03689072,176.98,176.96,106.55940559]
[1754655462862,3.23,176.97,176.96,106.55940559]
[1754655463062,3.23,176.97,176.96,112.20800559]
[1754655463261,19.03884337,177.02,176.97,3.27]
[1754655463460,12.67398416,176.99,176.96,103.39067854]
[1754655463660,3.23,177.03,176.98,3.16872705]
[1754655463861,3.23,177.03,177.02,3.16872705]
[1754655464158,3.23,177.03,177.02,107.18872705]
[1754655469063,3.23,177.03,177.02,104.02]
[1754655469261,3.23,177.03,177.01,0.03604853]
[1754655470263,19.03884337,177.03,177.01,0.03604853]
[1754655470464,3.23,177.02,177.01,0.03604853]
[1754655471270,3.23,177.02,177.0,96.9692301]
[1754655471768,3.23,177.02,176.94,235.0]
[1754655472068,3.23,177.01,176.96,107.16872705]
[1754655472264,3.23,177.01,176.96,107.56872705]
[1754655472666,3.23,177.01,176.96,113.21712705]
[1754655473470,3.23,177.01,176.97,3.16872705]
[1754655473765,3.23,177.0,176.97,3.16872705]
[1754655474668,3.23,176.99,176.97,3.16872705]
[1754655476271,3.23,177.0,176.96,83.31591123]
[1754655476463,12.67986844,176.97,176.96,83.31591123]
[1754655476669,15.90986844,176.97,176.96,83.31591123]
[1754655477264,3.23,176.97,176.96,83.31591123]
[1754655478867,3.23,176.97,176.96,83.71591123]
[1754655479772,3.23,176.97,176.96,83.31591123]
[1754655479971,15.90981119,176.97,176.96,83.31591123]
[1754655480160,3.23,176.97,176.96,83.31591123]
[1754655480870,3.23,176.97,176.95,13.93]
[1754655481070,15.90919879,176.96,176.95,13.93]
[1754655483573,15.90919879,176.96,176.95,1.6264227]
[1754655484072,3.23,176.96,176.95,1.6264227]
[1754655484274,15.908488,176.96,176.95,1.6264227]
[1754655488575,15.77949078,176.98,176.95,4.79514975]
[1754655488775,15.77949078,176.98,176.96,0.4]
[1754655488977,3.06,176.97,176.96,0.4]
[1754655489969,3.06,176.97,176.95,4.79514975]
[1754655490367,3.06,176.96,176.95,5.19514975]
[1754655492175,0.04100278,176.98,176.96,0.4]
[1754655492376,15.77949078,176.98,176.97,103.96]
[1754655492582,3.10100278,176.98,176.97,103.96]
[1754655492782,3.10100278,176.98,176.95,1.6264227]
[1754655493082,15.7361087,176.96,176.95,1.6264227]
[1754655493277,3.06,176.96,176.95,1.6264227]
[1754655493482,3.06,176.96,176.94,81.728109]
[1754655493677,12.67686162,176.95,176.94,81.728109]
[1754655493884,15.73686162,176.95,176.94,81.728109]
[1754655494579,3.06,176.96,176.94,84.89683605]
[1754655494881,3.06,176.95,176.94,84.89683605]
[1754655495180,3.06,176.95,176.94,85.29683605]
[1754655495570,3.06,176.95,176.94,84.89683605]
[1754655501087,15.73686162,176.95,176.94,84.89683605]
[1754655501287,15.73686162,176.95,176.94,81.728109]
[1754655501589,3.06,176.94,176.9,3.16872705]
[1754655501786,15.73686162,176.94,176.9,107.12872705]
[1754655501980,3.06,176.93,176.9,107.12872705]
[1754655502493,12.67686162,176.92,176.9,107.12872705]
[1754655502786,3.06,176.91,176.9,107.12872705]
[1754655503385,3.06,176.91,176.9,107.52872705]
[1754655503684,3.06,176.91,176.9,86.8359339]
[1754655503889,12.67686162,176.93,176.9,86.8359339]
[1754655503890,15.73686162,176.93,176.91,0.4]
[1754655504083,15.73686162,176.93,176.92,3.56872705]
[1754655504280,3.06,176.93,176.92,3.56872705]
[1754655504585,3.06,176.93,176.92,3.16872705]
[1754655505088,0.03882188,176.94,176.92,3.16872705]
[1754655505282,0.03882188,176.94,176.93,104.36]
[1754655506087,3.09882188,176.94,176.93,104.36]
[1754655507386,0.03882188,176.94,176.93,110.0095]
[1754655508287,0.03882188,176.94,176.93,104.36]
[1754655508684,3.09882188,176.94,176.93,104.36]
[1754655508890,3.09882188,176.94,176.93,113.17822705]
[1754655509190,3.09882188,176.94,176.93,107.52872705]
[1754655509392,3.09882188,176.94,176.93,107.12872705]
[1754655510193,3.09882188,176.94,176.93,107.52872705]
[1754655510493,3.09882188,176.94,176.93,113.17832705]
[1754655511087,3.09882188,176.94,176.93,107.52872705]
[1754655511287,3.09882188,176.94,176.93,107.12872705]
[1754655512587,15.7756835,176.94,176.93,107.12872705]
[1754655513295,15.7756835,176.94,176.93,100.05932349]
[1754655513496,15.7756835,176.94,176.93,73.03136153]
[1754655514597,3.09882188,176.94,176.93,73.03136153]
[1754655515797,0.03882188,176.94,176.93,73.43136153]
[1754655515989,3.09882188,176.94,176.93,73.03136153]
[1754655516190,15.7756835,176.94,176.93,73.03136153]
[1754655516696,15.7756835,176.94,176.93,73.43136153]
[1754655517402,15.7756835,176.94,176.93,76.60008858]
[1754655517600,15.7756835,176.94,176.93,76.20008858]
[1754655519500,3.09882188,176.94,176.93,76.20008858]
[1754655520909,3.09882188,176.94,176.93,76.60008858]
[1754655521204,15.79398053,176.94,176.93,76.60008858]
[1754655521397,15.79398053,176.94,176.93,82.24968858]
[1754655521707,15.79398053,176.94,176.93,76.20008858]
[1754655522604,3.09882188,176.94,176.93,76.20008858]
[1754655523305,3.09882188,176.94,176.93,69.13114687]
[1754655523493,3.09882188,176.94,176.93,45.27346124]
[1754655523701,15.7973963,176.94,176.93,45.27346124]
[1754655524410,15.7973963,176.94,176.93,50.92306124]
[1754655525001,15.7973963,176.94,176.93,51.32306124]
[1754655525598,3.09882188,176.94,176.93,51.32306124]
[1754655526406,3.09882188,176.94,176.93,50.92306124]
[1754655526915,3.09882188,176.94,176.93,51.32306124]
[1754655529512,3.09882188,176.94,176.93,50.92306124]
[1754655530010,15.79841104,176.94,176.93,50.92306124]
[1754655531009,15.79841104,176.94,176.93,51.32306124]
[1754655531910,15.79841104,176.94,176.93,50.92306124]
[1754655532105,3.09882188,176.94,176.93,45.27346124]
[1754655532708,3.09882188,176.94,176.93,44.12960489]
[1754655533309,3.09882188,176.94,176.93,37.0605602]
[1754655533509,3.09882188,176.94,176.93,13.20253647]
[1754655533707,15.79918424,176.94,176.93,13.20253647]
[1754655534412,3.09882188,176.94,176.93,13.20253647]
[1754655536307,3.09882188,176.94,176.92,2.0248707]
[1754655536716,3.09882188,176.94,176.9,16.08]
[1754655536717,20.93253595,176.94,176.9,16.08]
[1754655537005,3.09,176.93,176.9,16.08]
[1754655537208,5.1148707,176.91,176.9,16.08]
[1754655537401,5.1148707,176.91,176.9,3.28]
[1754655537605,23.49371407,176.91,176.86,2.0248707]
[1754655537912,17.83371407,176.91,176.88,3.12]
[1754655538412,17.87200762,176.91,176.87,3.12]
[1754655538613,15.84713692,176.91,176.87,3.12]
[1754655539413,15.84713692,176.91,176.86,5.6517]
[1754655539606,12.68928598,176.87,176.86,8.7717]
[1754655540309,12.68450484,176.87,176.85,103.88]
[1754655540501,12.68450484,176.87,176.85,107.0]
[1754655541012,12.68450484,176.87,176.86,3.12]
[1754655541603,12.68450484,176.87,176.84,5.6522]
[1754655541904,12.68450484,176.87,176.85,3.12]
[1754655542102,12.7227795,176.88,176.76,238.16670889]
[1754655542308,9.50695837,176.82,176.81,6.28670889]
[1754655542513,0.03827466,176.88,176.81,6.28670889]
[1754655542514,12.68450484,176.84,176.81,3.12]
[1754655542714,3.16670889,176.87,176.81,3.12]
[1754655542715,12.68450484,176.83,176.81,3.12]
[1754655543105,12.72787944,176.83,176.81,3.12]
[1754655543309,0.0433746,176.83,176.79,107.06670889]
[1754655543511,0.0433746,176.83,176.8,3.12]
[1754655543814,0.0433746,176.83,176.81,5.6534]
[1754655544109,0.0433746,176.83,176.82,3.12]
[1754655544314,2.9033746,176.83,176.82,0.26219421]
[1754655545218,2.9033746,176.83,176.81,5.6534]
[1754655545518,2.9033746,176.83,176.82,5.6531]
[1754655546015,0.0433746,176.83,176.82,5.6531]
[1754655546214,0.0433746,176.83,176.82,3.11]
[1754655546708,2.8933746,176.83,176.8,3.16670889]
[1754655547011,2.8933746,176.83,176.77,3.11]
[1754655547215,2.85,176.82,176.77,8.7645]
[1754655547412,2.85,176.82,176.78,3.11]
[1754655547622,218.16016179,176.83,176.8,3.11]
[1754655547916,218.16016179,176.83,176.8,8.7635]
[1754655548320,221.01016179,176.83,176.82,3.11]
[1754655548914,218.16016179,176.83,176.82,3.11]
[1754655550220,218.16016179,176.83,176.82,8.7631]
[1754655550918,218.16016179,176.83,176.82,6.27670889]
[1754655551219,218.16016179,176.83,176.82,3.11]
[1754655551419,218.16016179,176.83,176.82,6.27670889]
[1754655551619,218.16016179,176.83,176.82,11.92980889]
[1754655552023,218.16016179,176.83,176.82,6.27670889]
[1754655552618,218.16016179,176.83,176.82,11.92980889]
[1754655554020,218.16016179,176.83,176.82,6.27670889]
[1754655555021,218.16016179,176.83,176.82,11.92980889]
[1754655558029,221.01016179,176.83,176.82,6.27670889]
[1754655558218,221.01016179,176.83,176.82,3.16670889]
[1754655558417,221.01016179,176.83,176.82,6.27670889]
[1754655558617,221.01016179,176.83,176.8,8.7636]
[1754655558618,218.16016179,176.83,176.8,8.7636]
[1754655558818,12.31263105,176.81,176.8,11.93030889]
[1754655559427,12.31263105,176.81,176.67,3.16670889]
[1754655559428,5.66,176.81,176.74,3.11]
[1754655559729,9.46314528,176.8,176.78,3.11]
[1754655559925,9.46314528,176.8,176.79,8.82070889]
[1754655560126,230.80129203,176.83,176.79,8.82070889]
[1754655560328,0.03874172,176.81,176.79,3.16670889]
[1754655560524,0.03874172,176.81,176.79,6.27670889]
[1754655560724,2.85,176.8,176.77,3.11]
[1754655560931,2.85,176.79,176.75,6.27670889]
[1754655561132,2.85,176.79,176.75,8.82190889]
[1754655561329,2.85,176.79,176.76,3.11]
[1754655561528,2.85,176.78,176.75,5.6552]
[1754655561830,12.68450484,176.8,176.77,3.11]
[1754655562033,12.68450484,176.8,176.77,3.16670889]
[1754655562330,2.85,176.8,176.79,3.11]
[1754655562534,2.85,176.8,176.77,8.82130889]
[1754655562725,2.85,176.8,176.77,3.16670889]
[1754655562922,12.72324656,176.81,176.78,3.11]
[1754655563129,0.03874172,176.81,176.78,3.11]
[1754655563633,2.88874172,176.81,176.78,3.11]
[1754655563826,2.85,176.8,176.77,3.16670889]
[1754655564026,2.85,176.78,176.77,3.11]
[1754655564932,2.85,176.78,176.74,103.9]
[1754655565236,3.16670889,176.79,176.74,103.9]
[1754655565237,9.45576887,176.75,176.74,103.9]
[1754655565628,9.45576887,176.75,176.74,107.01]
[1754655566232,9.45576887,176.75,176.74,112.6656]
[1754655567830,9.49323864,176.76,176.75,8.7653]
[1754655568032,9.49323864,176.76,176.75,11.93200889]
[1754655568330,9.49323864,176.76,176.75,8.7653]
[1754655568532,9.49323864,176.76,176.75,11.93200889]
[1754655569830,0.03746977,176.76,176.75,11.93200889]
[1754655574339,0.03746977,176.76,176.75,8.7653]
[1754655575535,9.49135102,176.76,176.75,8.7653]
[1754655578436,0.03746977,176.76,176.75,8.7653]
[1754655581438,0.03746977,176.76,176.75,0.39172453]
[1754655581635,3.31746977,176.76,176.75,0.39172453]
[1754655582345,3.31746977,176.76,176.75,5.68593837]
[1754655584143,3.31746977,176.76,176.75,5.6553]
[1754655584444,3.31746977,176.76,176.75,8.6453]
[1754655585837,3.31746977,176.76,176.74,112.72220889]
[1754655586040,16.00197461,176.76,176.74,112.72220889]
[1754655586245,3.28,176.75,176.74,112.72220889]
[1754655586847,3.28,176.75,176.74,115.71220889]
[1754655587748,12.72197461,176.76,176.75,5.6553]
[1754655588050,16.00197461,176.76,176.75,8.6453]
[1754655589048,16.00197461,176.76,176.75,5.6553]
[1754655590551,3.31746977,176.76,176.75,5.6553]
[1754655591148,3.31746977,176.76,176.7,2.99]
[1754655591346,3.28,176.72,176.68,2.99]
[1754655591546,12.67973958,176.72,176.64,3.16670889]
[1754655591853,9.51225228,176.66,176.65,106.89]
[1754655592457,9.51225228,176.66,176.65,112.5485]
[1754655593252,9.51225228,176.66,176.65,115.71520889]
[1754655594055,12.67973958,176.72,176.65,107.06670889]
[1754655594252,3.28,176.72,176.69,3.16670889]
[1754655594456,3.28,176.71,176.7,106.89]
[1754655594654,3.28,176.71,176.7,103.9]
[1754655595050,15.95973958,176.71,176.68,103.92]
[1754655595254,3.28,176.7,176.68,103.92]
[1754655597857,3.28,176.7,176.68,109.5775]
[1754655598558,3.28,176.7,176.68,112.5675]
[1754655598757,3.28,176.7,176.68,109.5775]
[1754655598947,3.28,176.71,176.68,103.92]
[1754655599153,12.67973958,176.71,176.68,103.92]
[1754655599352,3.28,176.7,176.68,103.92]
[1754655599856,15.95973958,176.7,176.67,0.03561873]
[1754655600056,3.28,176.69,176.67,0.03561873]
[1754655600849,6.44670889,176.69,176.67,0.03561873]
[1754655601052,6.44670889,176.69,176.62,3.16670889]
[1754655601053,3.28,176.68,176.62,103.94]
[1754655601256,3.28,176.68,176.62,106.93]
[1754655601457,3.28,176.68,176.64,2.99]
[1754655601659,3.28,176.67,176.64,2.99]
[1754655602263,3.28,176.66,176.64,2.99]
[1754655602561,3.28,176.66,176.64,8.6486]
[1754655602765,3.28,176.66,176.62,106.93]
[1754655603460,3.28,176.66,176.62,103.94]
[1754655603765,3.28,176.66,176.63,8.6491]
[1754655604158,3.28,176.66,176.63,2.99]
[1754655604358,3.28,176.66,176.62,112.5894]
[1754655604961,3.28,176.66,176.62,106.93]
[1754655605265,0.03614094,176.67,176.63,2.99]
[1754655605454,3.28,176.65,176.63,2.99]
[1754655605657,3.28,176.65,176.64,8.6488]
[1754655605858,3.28,176.65,176.64,2.99]
[1754655606160,0.03614094,176.67,176.62,107.10670889]
[1754655606464,3.22,176.65,176.63,3.21]
[1754655606666,3.22,176.65,176.64,3.21]
[1754655610579,0.03614094,176.67,176.64,3.21]
[1754655610770,3.25614094,176.67,176.66,3.21]
[1754655611568,3.25614094,176.67,176.64,3.21]
[1754655611977,0.03614094,176.67,176.64,3.21]
[1754655612167,3.22,176.65,176.64,3.21]
[1754655613161,3.22,176.65,176.63,3.21]
[1754655614473,3.22,176.64,176.61,3.21]
[1754655614673,9.46745783,176.62,176.61,3.21]
[1754655614865,9.46745783,176.62,176.61,5.6598]
[1754655615062,9.46745783,176.62,176.61,8.8698]
[1754655615362,3.22,176.64,176.63,5.6591]
[1754655615565,3.22,176.67,176.64,3.21]
[1754655615775,3.22,176.66,176.64,3.21]
[1754655616074,3.22,176.68,176.64,3.21]
[1754655616277,3.22,176.68,176.62,103.94]
[1754655616574,3.25889954,176.68,176.66,3.21]
[1754655616776,3.22,176.67,176.64,3.16670889]
[1754655617169,3.22,176.67,176.64,8.82530889]
[1754655617374,3.22,176.67,176.65,3.21]
[1754655617764,3.22,176.67,176.65,5.6585]
[1754655617969,3.22,176.67,176.66,3.21]
[1754655618964,0.03889954,176.68,176.66,3.21]
[1754655618965,3.25889954,176.68,176.66,3.16670889]
[1754655619163,3.25889954,176.68,176.67,3.21]
[1754655621675,0.03889954,176.68,176.67,3.21]
[1754655622577,3.25889954,176.68,176.67,3.21]
[1754655623078,3.25889954,176.68,176.66,3.16670889]
[1754655623281,3.22,176.67,176.66,3.16670889]
[1754655623574,3.22,176.67,176.66,6.37670889]
[1754655624166,3.25889954,176.68,176.67,3.21]
[1754655625177,3.25889954,176.68,176.66,3.16670889]
[1754655625374,3.22,176.67,176.66,3.16670889]
[1754655627271,3.22,176.67,176.66,6.37670889]
[1754655630191,3.22,176.67,176.65,3.16670889]
[1754655630379,3.22,176.66,176.65,3.16670889]
[1754655630887,3.22,176.67,176.59,3.16670889]
[1754655631180,12.6649364,176.63,176.59,8.82690889]
[1754655631380,12.6649364,176.63,176.59,3.16670889]
[1754655631580,3.22,176.61,176.59,3.16670889]
[1754655632187,3.22,176.61,176.6,7.27]
[1754655632687,3.22,176.61,176.6,1.61]
[1754655632882,3.22,176.61,176.58,103.94]
[1754655633093,3.22,176.61,176.56,3.16670889]
[1754655633686,3.22,176.6,176.56,3.16670889]
[1754655633889,3.26199801,176.6,176.56,3.16670889]
[1754655634275,3.26199801,176.6,176.56,8.82800889]
[1754655634480,3.22,176.59,176.58,1.61]
[1754655634983,3.22,176.58,176.57,1.61]
[1754655635487,3.22,176.58,176.57,7.2711]
[1754655635684,3.22,176.58,176.57,1.61]
[1754655635875,3.22,176.59,176.56,3.16670889]
[1754655636291,3.08,176.58,176.56,4.78670889]
[1754655636490,3.08,176.58,176.57,1.62]
[1754655636987,0.04199801,176.6,176.56,3.16670889]
[1754655637187,3.08,176.59,176.56,4.78670889]
[1754655637487,9.51666042,176.57,176.56,5.6614]
[1754655637693,9.51666042,176.57,176.56,8.82810889]
[1754655638083,9.51666042,176.57,176.56,10.44810889]
[1754655639189,3.08,176.58,176.56,10.44810889]
[1754655639386,15.7449364,176.59,176.44,1.62]
[1754655639589,4.72620879,176.49,176.44,1.62]
[1754655639788,4.72620879,176.49,176.48,3.16670889]
[1754655639986,9.51931318,176.5,176.48,8.83030889]
[1754655640182,12.60184221,176.5,176.49,103.96]
[1754655640385,3.08,176.5,176.49,103.96]
[1754655641092,12.60184221,176.5,176.49,103.96]
[1754655641385,0.03731927,176.51,176.41,380.72]
[1754655641586,9.50807641,176.48,176.46,3.16670889]
[1754655641786,3.08,176.47,176.46,3.16670889]
[1754655642389,0.03865831,176.49,176.46,107.12670889]
[1754655642593,9.54673472,176.49,176.48,3.16670889]
[1754655642987,3.11865831,176.49,176.41,381.70664625]
[1754655643292,12.57916999,176.47,176.46,3.16670889]
[1754655644089,9.49916999,176.47,176.46,113.13120889]
[1754655644294,12.6178283,176.49,176.46,107.46670889]
[1754655644499,12.6178283,176.49,176.48,3.16670889]
[1754655644792,12.6178283,176.49,176.48,8.83060889]
[1754655644993,12.6178283,176.49,176.48,3.16670889]
[1754655645192,3.11865831,176.49,176.48,3.16670889]
[1754655645387,12.5985798,176.49,176.48,3.16670889]
[1754655646191,3.11865831,176.49,176.48,3.16670889]
[1754655647090,3.08,176.48,176.43,3.16670889]
[1754655647291,3.08,176.47,176.44,104.34]
[1754655647492,3.08,176.46,176.45,3.16670889]
[1754655647796,3.08,176.46,176.45,8.83140889]
[1754655647995,3.08,176.46,176.45,3.16670889]
[1754655648900,3.08,176.46,176.45,8.83160889]
[1754655649400,3.08,176.48,176.45,3.16670889]
[1754655649594,3.11865831,176.49,176.47,3.16670889]
[1754655649794,3.11865831,176.49,176.48,104.46]
[1754655649995,3.11865831,176.49,176.48,110.1239]
[1754655650294,3.11865831,176.49,176.48,104.46]
[1754655650892,0.03865831,176.49,176.48,110.1239]
[1754655651292,3.08,176.54,176.48,107.62670889]
[1754655651492,9.47992149,176.59,176.53,3.16670889]
[1754655651695,3.16670889,176.65,176.48,107.62670889]
[1754655651696,3.08,176.6,176.54,104.5]
[1754655651886,3.08,176.6,176.54,3.16670889]
[1754655652092,3.08,176.6,176.55,104.54]
[1754655652293,3.08,176.6,176.56,3.16670889]
[1754655652593,3.08,176.6,176.55,113.36830889]
[1754655652986,12.55992149,176.6,176.55,113.36830889]
[1754655653199,3.08,176.59,176.56,0.03846763]
[1754655653400,3.08,176.59,176.56,5.69976763]
[1754655653598,3.08,176.59,176.56,0.03846763]
[1754655654401,12.55992149,176.59,176.56,0.03846763]
[1754655654602,3.08,176.57,176.56,0.03846763]
[1754655654795,3.08,176.57,176.52,104.58]
[1754655655803,3.08,176.57,176.53,3.16670889]
[1754655656190,9.51592939,176.59,176.55,3.16670889]
[1754655656390,0.0360079,176.59,176.57,3.16670889]
[1754655656998,3.08,176.58,176.57,3.16670889]
[1754655657302,0.0360079,176.59,176.57,3.16670889]
[1754655657700,0.0360079,176.59,176.57,107.80670889]
[1754655658699,0.0360079,176.59,176.58,5.6607]
[1754655659007,218.19440443,176.61,176.57,107.80670889]
[1754655659305,218.19440443,176.61,176.6,3.16670889]
[1754655659503,218.19440443,176.61,176.6,8.82680889]
[1754655659910,215.11440443,176.61,176.6,8.82680889]
[1754655660103,227.67432592,176.61,176.6,3.16670889]
[1754655660299,227.67432592,176.61,176.58,107.80670889]
[1754655660300,3.08,176.6,176.58,107.80670889]
[1754655660604,12.53229658,176.59,176.58,107.80670889]
[1754655660800,215.11440443,176.61,176.58,107.80670889]
[1754655660801,9.45229658,176.6,176.58,107.80670889]
[1754655661106,224.56670101,176.61,176.59,3.16670889]
[1754655661300,224.56670101,176.61,176.6,5.6601]
[1754655661906,227.64670101,176.61,176.6,5.6601]
[1754655662704,7.9424077,176.62,176.61,5.6598]
[1754655662896,3.08,176.68,176.61,107.82670889]
[1754655663100,3.08,176.68,176.66,3.16670889]
[1754655663398,12.6649364,176.72,176.66,3.16670889]
[1754655663600,12.6649364,176.71,176.66,3.16670889]
[1754655664002,3.08,176.7,176.67,5.6576]
[1754655665108,3.08,176.7,176.66,3.16670889]
[1754655665704,3.08,176.7,176.67,5.6576]
[1754655666406,3.08,176.7,176.66,8.82480889]
[1754655666801,3.08,176.7,176.66,3.16670889]
[1754655667206,3.08,176.7,176.65,104.66]
[1754655667404,6.34670889,176.69,176.6,3.16670889]
[1754655667603,3.16670889,176.67,176.58,3.16670889]
[1754655667807,3.18,176.64,176.58,104.62]
[1754655668007,3.16670889,176.63,176.58,104.62]
[1754655668210,3.18,176.61,176.58,104.65]
[1754655668411,3.18,176.65,176.59,3.19670889]
[1754655668605,3.18,176.65,176.59,8.82700889]
[1754655669010,0.04307982,176.64,176.59,8.82700889]
[1754655669314,3.18,176.63,176.59,5.6603]
[1754655671704,3.18,176.63,176.6,5.6601]
[1754655672013,3.18,176.63,176.58,104.65]
[1754655672217,3.18,176.62,176.59,0.03]
[1754655672516,3.18,176.62,176.6,0.03]
[1754655673320,3.18,176.62,176.61,5.6598]
[1754655673818,3.18,176.63,176.61,5.6598]
[1754655674014,3.18,176.63,176.58,104.65]
[1754655674518,3.18,176.63,176.6,5.6599]
[1754655675221,3.18,176.63,176.58,104.62]
[1754655675413,3.18,176.63,176.58,104.65]
[1754655675617,3.18,176.63,176.6,0.03]
[1754655675814,3.18,176.62,176.61,5.6595]
[1754655677918,3.18,176.6,176.59,5.17557665]
[1754655679218,3.18,176.6,176.59,10.83597665]
[1754655680220,3.18,176.6,176.59,5.6604]
[1754655680424,3.18,176.6,176.58,104.62]
[1754655680726,3.18,176.6,176.52,5.17557665]
[1754655680921,3.18,176.6,176.54,5.6618]
[1754655681528,3.18,176.6,176.55,5.6616]
[1754655681720,0.04257845,176.59,176.55,5.6616]
[1754655681922,3.18,176.58,176.53,104.68]
[1754655682117,3.18,176.58,176.54,5.6618]
[1754655682631,3.18,176.58,176.54,5.6619]
[1754655683024,3.18,176.57,176.54,5.6619]
[1754655683227,9.46726162,176.57,176.54,5.6619]
[1754655683431,3.18,176.56,176.54,5.6619]
[1754655683733,3.18,176.56,176.55,5.6617]
[1754655686930,12.64726162,176.56,176.54,5.6619]
[1754655687125,3.18,176.55,176.54,5.6619]
[1754655688122,3.18,176.55,176.53,104.68]
[1754655688123,12.64726162,176.55,176.53,104.68]
[1754655688331,12.64726162,176.54,176.53,104.68]
[1754655689129,12.64726162,176.54,176.53,110.3423]
[1754655689533,12.64726162,176.54,176.53,104.68]
[1754655689737,3.18,176.54,176.51,5.6629]
[1754655689939,12.65953828,176.52,176.51,5.6629]
[1754655690336,3.18,176.52,176.51,5.6629]
[1754655691239,12.65953828,176.52,176.51,5.6629]
[1754655691628,0.04103732,176.53,176.52,5.6927]
[1754655692834,3.732e-05,176.53,176.52,8.86977984]
[1754655693031,9.47953828,176.56,176.55,0.03]
[1754655693235,9.47953828,176.56,176.55,104.69]
[1754655693436,9.47953828,176.56,176.55,110.3517]